Workbook

Sheet Sheet1
L4: Attachment O
L5: page 1 of 5
C7: Formula Rate - Non-Levelized | E7: Rate Formula Template | J7: For the 12 months ended 12/31/14
E8: Utilizing FERC Form 1 Data
E10: Montana-Dakota Utilities
A12: Line | J12: Allocated
A13: No. | J13: Amount
A14: 1 | C14: GROSS REVENUE REQUIREMENT (page 3, line 31) | J14: =+J227 -> 25738401.37
C17: REVENUE CREDITS | D17: (Note T) | E17: Total | G17: Allocator
A18: 2 | C18: Account No. 454 | D18: (page 4, line 34) | E18: =E304 -> 1445541 | G18: TP | H18: =J253 -> 0.9590914765 | J18: =+H18*E18 -> 1386406.052
A19: 3 | C19: Account No. 456.1 | D19: (page 4, line 37) | E19: =E311 -> 351921 | G19: =+G18 -> TP | H19: 0.9590914765 | J19: =+H19*E19 -> 337524.4315
A20: 4 | C20: Revenues from Grandfathered Interzonal Transactions | E20: 0 | G20: TP | H20: 0.9590914765 | J20: =+H20*E20 -> 0
A21: 5 | C21: Revenues from service provided by the ISO at a discount | E21: 0 | G21: TP | H21: 0.9590914765 | J21: =+H21*E21 -> 0
A22: 6 | C22: TOTAL REVENUE CREDITS (sum lines 2-5) | J22: =SUM(J18:J21) -> 1723930.484
A24: 6a | C24: Historic Year Actual ATRR | J24: 0
A25: 6b | C25: Projected ATRR from Prior Year | D25: Input from Prior Year | J25: 0
A26: 6c | C26: Prior Year ATRR True-Up | D26: (line 6a - line 6b) | J26: =J24-J25 -> 0
A27: 6d | C27: Prior Year Divisor True-Up | D27: (Note FF) | J27: =E393 -> 0
A28: 6e | C28: Interest on Prior Year True-Up | J28: 0
A30: 7 | C30: NET REVENUE REQUIREMENT | D30: (line 1 - line 6 + line 6c through 6e) | J30: =+J14-J22+J26+J27+J28 -> 24014470.89
C33: DIVISOR
A34: 8 | C34: Average of 12 coincident system peaks for requirements (RQ) service | H34: (Note A) | J34: 514133
A35: 9 | C35: Plus 12 CP of firm bundled sales over one year not in line 8 | H35: (Note B) | J35: 0
A36: 10 | C36: Plus 12 CP of Network Load not in line 8 | H36: (Note C) | J36: 0
A37: 11 | C37: Less 12 CP of firm P-T-P over one year (enter negative) | H37: (Note D) | J37: 0
A38: 12 | C38: Plus Contract Demand of firm P-T-P over one year | J38: 0
A39: 13 | C39: Less Contract Demand from Grandfathered Interzonal Transactions over one year (enter negative) (Note S) | J39: 0
A40: 14 | C40: Less Contract Demands from service over one year provided by ISO at a discount (enter negative) | J40: 0
A41: 15 | C41: Divisor (sum lines 8-14) | J41: =SUM(J34:J40) -> 514133
A43: 16 | C43: Annual Cost ($/kW/Yr) | D43: (line 7 / line 15) | E43: =IF(J41>0,J30/J41,0) -> 46.70867438
A44: 17 | C44: Network & P-to-P Rate ($/kW/Mo) | D44: (line 16 / 12) | E44: =+E43/12 -> 3.892389532
E46: Peak Rate | J46: Off-Peak Rate
A48: 18 | C48: Point-To-Point Rate ($/kW/Wk) | D48: (line 16 / 52; line 16 / 52) | E48: =+E43/52 -> 0.8982437381 | J48: =+E43/52 -> 0.8982437381
A49: 19 | C49: Point-To-Point Rate ($/kW/Day) | D49: (line 16 / 260; line 16 / 365) | E49: =+E43/260 -> 0.1796487476 | F49: Capped at weekly rate | J49: =+E43/365 -> 0.1279689709
A50: 20 | C50: Point-To-Point Rate ($/MWh) | D50: (line 16 / 4,160; line 16 / 8,760*1000) | E50: =+E43/4160*1000 -> 11.22804673 | F50: Capped at weekly and daily rates | J50: =+E43/8760*1000 -> 5.332040455
A52: 21 | C52: FERC Annual Charge($/MWh) | D52: (Note E) | E52: 0 | F52: Short Term | J52: =E52 -> 0 | K52: Short Term
A53: 22 | E53: 0 | F53: Long Term | J53: =E53 -> 0 | K53: Long Term
L81: Attachment O
L82: page 2 of 5
C84: Formula Rate - Non-Levelized | E84: Rate Formula Template | J84: =J7 -> For the 12 months ended 12/31/14
E85: Utilizing FERC Form 1 Data
E87: =E10 -> Montana-Dakota Utilities
C88: (1) | D88: (2) | E88: (3) | H88: (4) | J88: (5)
D89: Form No. 1 | J89: Transmission
A90: Line | D90: Page, Line, Col. | E90: Company Total | G90: Allocator | J90: (Col 3 times Col 4)
A91: No. | C91: RATE BASE:
C93: GROSS PLANT IN SERVICE (Note AA, Note DD)
A94: 1 | C94: Production | D94: 205.46.g | E94: 511974142 | G94: NA
A95: 2 | C95: Transmission | D95: 207.58.g | E95: 211510665 | G95: TP | H95: =J253 -> 0.9590914765 | J95: =+H95*E95 -> 202858076
A96: 3 | C96: Distribution | D96: 207.75.g | E96: 264569193 | G96: NA
A97: 4 | C97: General & Intangible | D97: 205.5.g & 207.99.g | E97: =27292627+8834728 -> 36127355 | G97: W/S | H97: =J271 -> 0.1428884789 | J97: =+H97*E97 -> 5162182.804
A98: 5 | C98: Common | D98: 356.1 | E98: 122813988 | G98: CE | H98: =L276 -> 0.1068294692 | J98: =+H98*E98 -> 13120153.14
A99: 6 | C99: TOTAL GROSS PLANT (sum lines 1-5) | E99: =SUM(E94:E98) -> 1146995343 | G99: GP= | H99: =IF(J99>0,J99/E99,0) -> 0.192799747 | J99: =SUM(J94:J98) -> 221140411.9
C101: ACCUMULATED DEPRECIATION (Note AA, Note DD)
A102: 7 | C102: =+C94 -> Production | D102: 219.20-24.c | E102: 254857741 | G102: =+G94 -> NA | H102: =+H94 -> 
A103: 8 | C103: =+C95 -> Transmission | D103: 219.25.c | E103: 92728831 | G103: =+G95 -> TP | H103: 0.9590914765 | J103: =+H103*E103 -> 88935431.44
A104: 9 | C104: =+C96 -> Distribution | D104: 219.26.c | E104: 115143544 | G104: NA
A105: 10 | C105: =+C97 -> General & Intangible | D105: 219.28.c & 200.21.c | E105: =12345450+1777935 -> 14123385 | G105: W/S | H105: 0.1428884789 | J105: =+H105*E105 -> 2018069
A106: 11 | C106: =+C98 -> Common | D106: 356.1 | E106: 36894903 | G106: CE | H106: 0.1068294692 | J106: =+H106*E106 -> 3941462.902
A107: 12 | C107: TOTAL ACCUM. DEPRECIATION (sum lines 7-11) | E107: =SUM(E102:E106) -> 513748404 | J107: =SUM(J102:J106) -> 94894963.34
C109: NET PLANT IN SERVICE (Note DD)
A110: 13 | C110: =+C102 -> Production | D110: (line 1- line 7) | E110: =E94-E102 -> 257116401
A111: 14 | C111: =+C103 -> Transmission | D111: (line 2- line 8) | E111: =E95-E103 -> 118781834 | J111: =J95-J103 -> 113922644.6
A112: 15 | C112: =+C104 -> Distribution | D112: (line 3 - line 9) | E112: =E96-E104 -> 149425649
A113: 16 | C113: =+C105 -> General & Intangible | D113: (line 4 - line 10) | E113: =E97-E105 -> 22003970 | J113: =J97-J105 -> 3144113.804
A114: 17 | C114: =+C106 -> Common | D114: (line 5 - line 11) | E114: =E98-E106 -> 85919085 | J114: =J98-J106 -> 9178690.242
A115: 18 | C115: TOTAL NET PLANT (sum lines 13-17) | E115: =SUM(E110:E114) -> 633246939 | G115: NP= | H115: =IF(J115>0,J115/E115,0) -> 0.1993621143 | J115: =SUM(J110:J114) -> 126245448.6
A117: 18a | C117: 100% CWIP Recovery for Commission Approved Order
C118: No. 679 Transmission Projects (Note DD) | D118: 216.b | E118: 5562337 | G118: =+G94 -> NA | H118: 1 | J118: =+E118*H118 -> 5562337
C120: ADJUSTMENTS TO RATE BASE (Note F, Note EE)
A121: 19 | C121: Account No. 281 (enter negative) | D121: 273.8.k | G121: =+G102 -> NA | H121: zero | J121: 0
A122: 20 | C122: Account No. 282 (enter negative) | D122: 275.2.k | E122: -152954375 | G122: NP | H122: =+H115 -> 0.1993621143 | J122: =E122*H122 -> -30493307.58
A123: 21 | C123: Account No. 283 (enter negative) | D123: 277.9.k | E123: -21047933 | G123: NP | H123: =+H122 -> 0.1993621143 | J123: =E123*H123 -> -4196160.424
A124: 22 | C124: Account No. 190 | D124: 234.8.c | E124: 24498545 | G124: =+G123 -> NP | H124: =+H123 -> 0.1993621143 | J124: =E124*H124 -> 4884081.727
A125: 23 | C125: Account No. 255 (enter negative) | D125: 267.8.h | G125: NP | H125: =+H123 -> 0.1993621143 | J125: =E125*H125 -> 0
A126: 23a | C126: RESERVED FOR FUTURE USE | J126: =E126*H126 -> 0
A127: 23b | C127: Unamortized Balance of Abandoned Plant (Note CC, Note DD) | G127: =+G94 -> NA | H127: 1
A128: 24 | C128: TOTAL ADJUSTMENTS (sum lines 19- 23b) | E128: =SUM(E121:E126) -> -149503763 | J128: =SUM(J121:J126) -> -29805386.28
A130: 25 | C130: LAND HELD FOR FUTURE USE (Note DD) | D130: 214.x.d (Note G) | E130: 0 | G130: =+G103 -> TP | H130: =+H103 -> 0.9590914765 | J130: =+H130*E130 -> 0
C132: WORKING CAPITAL (Note H)
A133: 26 | C133: CWC | D133: calculated | E133: =+E183/8 -> 3147136 | J133: =+J183/8 -> 977596.795
A134: 27 | C134: Materials & Supplies (Note G, Note DD) | D134: 227.8.c & .16.c | E134: 3056020 | G134: TE | H134: =J263 -> 0.8039691049 | J134: =+H134*E134 -> 2456945.664
A135: 28 | C135: Prepayments (Account 165, Note DD) | D135: 111.57.c | E135: 730000 | G135: GP | H135: =+H99 -> 0.192799747 | J135: =+H135*E135 -> 140743.8153
A136: 29 | C136: TOTAL WORKING CAPITAL (sum lines 26 - 28) | E136: =E133+E134+E135 -> 6933156 | J136: =J133+J134+J135 -> 3575286.274
A138: 30 | C138: RATE BASE (sum lines 18, 18a, 24, 25, & 29) | E138: =+E136+E130+E128+E115+E118 -> 496238669 | J138: =+J136+J130+J128+J115+J118 -> 105577685.6
L161: Attachment O
L162: page 3 of 5
C164: Formula Rate - Non-Levelized | E164: Rate Formula Template | J164: =J7 -> For the 12 months ended 12/31/14
E165: Utilizing FERC Form 1 Data
E167: =E10 -> Montana-Dakota Utilities
C168: (1) | D168: (2) | E168: (3) | H168: (4) | J168: (5)
A170: Line | D170: Form No. 1 | J170: Transmission
A171: No. | D171: Page, Line, Col. | E171: Company Total | G171: Allocator | J171: (Col 3 times Col 4)
C173: O&M (Note BB)
A174: 1 | C174: Transmission | D174: 321.112.b | E174: 8762334 | G174: TE | H174: =J263 -> 0.8039691049 | J174: =+H174*E174 -> 7044645.823
A175: 1a | C175: Less LSE Expenses included in Transmission O&M Accounts (Note V) | E175: 487218 | H175: 1 | J175: =+H175*E175 -> 487218
A176: 2 | C176: Less Account 565 | D176: 321.96.b | E176: 1745877 | G176: TE | H176: =+H174 -> 0.8039691049 | J176: =+H176*E176 -> 1403631.169
A177: 3 | C177: A&G | D177: 323.197.b | E177: 19093356 | G177: W/S | H177: =+H105 -> 0.1428884789 | J177: 2728220.597
A178: 4 | C178: Less FERC Annual Fees | E178: 179977 | G178: =+G177 -> W/S | H178: =+H177 -> 0.1428884789 | J178: 25716.63977
A179: 5 | C179: Less EPRI & Reg. Comm. Exp. & Non-safety Ad. (Note I) | E179: 269183 | G179: =+G178 -> W/S | H179: =+H178 -> 0.1428884789 | J179: 38463.14942
A180: 5a | C180: Plus Transmission Related Reg. Comm. Exp. (Note I) | E180: 3653 | G180: =+G174 -> TE | H180: =+H174 -> 0.8039691049 | J180: =+H180*E180 -> 2936.89914
A181: 6 | C181: Common | D181: =+D106 -> 356.1 | G181: CE | H181: =+H106 -> 0.1068294692 | J181: 0
A182: 7 | C182: Transmission Lease Payments | H182: 1 | J182: 0
A183: 8 | C183: TOTAL O&M (sum lines 1, 3, 5a, 6, 7 less lines 1a, 2, 4, 5) | E183: =+E174-E175-E176+E177-E178-E179+E180+E181+E182 -> 25177088 | J183: =+J174-J175-J176+J177-J178-J179+J180+J181+J182 -> 7820774.36
C185: DEPRECIATION AND AMORTIZATION EXPENSE (Note AA)
A186: 9 | C186: =+C174 -> Transmission | D186: 336.7.b | E186: 3943580 | G186: TP | H186: =+H130 -> 0.9590914765 | J186: =+H186*E186 -> 3782253.965
A187: 9a | C187: Abandoned Plant Amortization | D187: (Note CC) | G187: =+G94 -> NA | H187: 1 | J187: =+H187*E187 -> 0
A188: 10 | C188: General & Intangible | D188: 336.10.f & 336.1.f | E188: =1863221+1020768 -> 2883989 | G188: W/S | H188: =+H177 -> 0.1428884789 | J188: =+H188*E188 -> 412088.8015
A189: 11 | C189: =+C181 -> Common | D189: 336.11.b | E189: 3709660 | G189: CE | H189: =+H181 -> 0.1068294692 | J189: =+H189*E189 -> 396301.0086
A190: 12 | C190: TOTAL DEPRECIATION (Sum lines 9 - 11) | E190: =SUM(E186:E189) -> 10537229 | J190: =SUM(J186:J189) -> 4590643.775
C192: TAXES OTHER THAN INCOME TAXES (Note J)
C193: LABOR RELATED
A194: 13 | C194: Payroll | D194: 263.i | E194: 1974024 | G194: W/S | H194: =+H188 -> 0.1428884789 | J194: =+H194*E194 -> 282065.2867
A195: 14 | C195: Highway and vehicle | D195: =+D194 -> 263.i | G195: =+G194 -> W/S | H195: =+H194 -> 0.1428884789 | J195: =+H195*E195 -> 0
A196: 15 | C196: PLANT RELATED
A197: 16 | C197: Property | D197: 263.i | E197: 7614720 | G197: GP | H197: =+H99 -> 0.192799747 | J197: =+H197*E197 -> 1468116.09
A198: 17 | C198: Gross Receipts | D198: 263.i | E198: 339716 | G198: =+G121 -> NA | H198: zero | J198: 0
A199: 18 | C199: Other | D199: =+D198 -> 263.i | E199: 1167000 | G199: =+G197 -> GP | H199: =+H197 -> 0.192799747 | J199: =+H199*E199 -> 224997.3048
A200: 19 | C200: Payments in lieu of taxes | G200: GP | H200: =+H197 -> 0.192799747 | J200: =+H200*E200 -> 0
A201: 20 | C201: TOTAL OTHER TAXES (sum lines 13 - 19) | E201: =SUM(E194:E200) -> 11095460 | J201: =SUM(J194:J200) -> 1975178.681
C204: INCOME TAXES | D204: (Note K)
A205: 21 | C205: T=1 - {[(1 - SIT) * (1 - FIT)] / (1 - SIT * FIT * p)} = | E205: =IF(E350>0,1-(((1-E351)*(1-E350))/(1-E351*E350*E352)),0) -> 0.383995
A206: 22 | C206: CIT=(T/1-T) * (1-(WCLTD/R)) = | E206: =IF(J295>0,(E205/(1-E205))*(1-J292/J295),0) -> 0.4506894427
C207: where WCLTD=(page 4, line 27) and R= (page 4, line 30)
C208: and FIT, SIT & p are as given in footnote K.
A209: 23 | C209: 1 / (1 - T) = (from line 21) | E209: =IF(E205>0,1/(1-E205),0) -> 1.623363447
A210: 24 | C210: Amortized Investment Tax Credit (266.8f) (enter negative) | E210: -126085
A212: 25 | C212: Income Tax Calculation = line 22 * line 28 | E212: =E206*E216 -> 20470696.65 | G212: NA | J212: =E206*J216 -> 4355260.704
A213: 26 | C213: ITC adjustment (line 23 * line 24) | E213: =E209*E210 -> -204681.7802 | G213: NP | H213: =H115 -> 0.1993621143 | J213: =H213*E213 -> -40805.79245
A214: 27 | C214: Total Income Taxes | D214: (line 25 plus line 26) | E214: =+E212+E213 -> 20266014.87 | J214: =+J212+J213 -> 4314454.912
A216: 28 | C216: RETURN | E216: =+$J295*E138 -> 45420847.95 | G216: NA | J216: =+$J295*J138 -> 9663551.642
C217: [ Rate Base (page 2, line 30) * Rate of Return (page 4, line 30)]
A219: 29 | C219: REV. REQUIREMENT (sum lines 8, 12, 20, 27, 28) | E219: =+E216+E214+E201+E190+E183 -> 112496639.8 | J219: =+J216+J214+J201+J190+J183 -> 28364603.37
A220: 30 | C220: LESS ATTACHMENT GG ADJUSTMENT [Attachment GG, page 2, line 3, column 10] (Note W)
C221: [Revenue Requirement for facilities included on page 2, line 2, and also
C222: included in Attachment GG] | E222: 1798253 | J222: =+E222 -> 1798253
A224: 30a | C224: LESS ATTACHMENT MM ADJUSTMENT [Attachment MM, page 2, line 3, column 14] (Note Y)
C225: [Revenue Requirement for facilities included on page 2, line 2, and also
C226: included in Attachment MM] | E226: 827949 | J226: =+E226 -> 827949
A227: 31 | C227: REV. REQUIREMENT TO BE COLLECTED UNDER ATTACHMENT O | E227: =+E219-E222-E226 -> 109870437.8 | J227: =+J219-J222-J226 -> 25738401.37
C228: (line 29 - line 30 - line30a)
L237: Attachment O
L238: page 4 of 5
C240: Formula Rate - Non-Levelized | E240: Rate Formula Template | J240: =J7 -> For the 12 months ended 12/31/14
E241: Utilizing FERC Form 1 Data
E243: =E10 -> Montana-Dakota Utilities
D244: SUPPORTING CALCULATIONS AND NOTES
A245: Line
A246: No. | C246: TRANSMISSION PLANT INCLUDED IN ISO RATES
A248: 1 | C248: Total transmission plant (page 2, line 2, column 3) | J248: =E95 -> 211510665
A249: 2 | C249: Less transmission plant excluded from ISO rates (Note M) | J249: 0
A250: 3 | C250: Less transmission plant included in OATT Ancillary Services (Note N ) | J250: 8652589
A251: 4 | C251: Transmission plant included in ISO rates (line 1 less lines 2 & 3) | J251: =J248-J249-J250 -> 202858076
A253: 5 | C253: Percentage of transmission plant included in ISO Rates (line 4 divided by line 1) | I253: TP= | J253: =IF(J248>0,J251/J248,0) -> 0.9590914765
C255: TRANSMISSION EXPENSES
A257: 6 | C257: Total transmission expenses (page 3, line 1, column 3) | J257: =E174 -> 8762334
A258: 7 | C258: Less transmission expenses included in OATT Ancillary Services (Note L) | J258: 1417210
A259: 8 | C259: Included transmission expenses (line 6 less line 7) | J259: =+J257-J258 -> 7345124
A261: 9 | C261: Percentage of transmission expenses after adjustment (line 8 divided by line 6) | J261: =IF(J257>0,J259/J257,0) -> 0.83826113
A262: 10 | C262: Percentage of transmission plant included in ISO Rates (line 5) | I262: TP | J262: =J253 -> 0.9590914765
A263: 11 | C263: Percentage of transmission expenses included in ISO Rates (line 9 times line 10) | I263: TE= | J263: =+J262*J261 -> 0.8039691049
C265: WAGES & SALARY ALLOCATOR (W&S)
D266: Form 1 Reference | E266: $ | F266: TP | H266: Allocation
A267: 12 | C267: Production | D267: 354.20.b | E267: 8169000 | F267: 0 | H267: =E267*F267 -> 0
A268: 13 | C268: Transmission | D268: 354.21.b | E268: 3238000 | F268: =+J253 -> 0.9590914765 | H268: =E268*F268 -> 3105538.201
A269: 14 | C269: Distribution | D269: 354.23.b | E269: 8291000 | F269: 0 | H269: =E269*F269 -> 0 | J269: W&S Allocator
A270: 15 | C270: Other | D270: 354.24,25,26.b | E270: 2036000 | F270: 0 | H270: =E270*F270 -> 0 | J270: ($ / Allocation)
A271: 16 | C271: Total (sum lines 12-15) | E271: =SUM(E267:E270) -> 21734000 | H271: =SUM(H267:H270) -> 3105538.201 | I271: = | J271: =IF(H271>0,H271/E271,0) -> 0.1428884789 | K271: = | L271: WS
C273: COMMON PLANT ALLOCATOR (CE) (Note O)
E274: $ | H274: % Electric | J274: =+J269 -> W&S Allocator
A275: 17 | C275: Electric | D275: 200.3.c | E275: 1353305676 | H275: (line 17 / line 20) | J275: (line 16) | L275: CE
A276: 18 | C276: Gas | D276: 201.3.d | E276: 456792147 | H276: =IF(E278>0,E275/E278,0) -> 0.747642287 | I276: * | J276: =J271 -> 0.1428884789 | K276: = | L276: =J276*H276 -> 0.1068294692
A277: 19 | C277: Water | D277: 201.3.e | E277: 0
A278: 20 | C278: Total (sum lines 17 - 19) | E278: =E275+E276+E277 -> 1810097823
C280: RETURN ® | E280: $
A281: 21 | C281: Long Term Interest (117, sum of 62.c through 66.c) | E281: 21884000
A283: 22 | C283: Preferred Dividends (118.29c) (positive number) | E283: 685000
C285: Development of Common Stock:
A286: 23 | C286: Proprietary Capital (112.16.c) (Note DD) | E286: 2725085462
A287: 24 | C287: Less Preferred Stock (line 28) (Note DD) | E287: =-E293 -> -15000000
A288: 25 | C288: Less Account 123.1 (225.42.(g)) (enter negative) (Note DD) | E288: -2254241000
A289: 26 | C289: Common Stock (sum lines 23-25) (Note DD) | E289: =+E286+E287+E288 -> 455844462
H290: Cost
E291: $ | F291: % | H291: (Note P) | J291: Weighted
A292: 27 | C292: Long Term Debt (112, sum of 18.c through 21.c) (Note DD) | E292: 392286000 | F292: =IF($E$295>0,E292/$E$295,0) -> 0.4544921275 | H292: =IF(E292>0,E281/E292,0) -> 0.05578582973 | J292: =H292*F292 -> 0.02535422044 | K292: =WCLTD
A293: 28 | C293: Preferred Stock (112.3.c) (Note DD) | E293: 15000000 | F293: =IF($E$295>0,E293/$E$295,0) -> 0.0173786011 | H293: =IF(E293>0,E283/E293,0) -> 0.04566666667 | J293: =H293*F293 -> 0.0007936227838
A294: 29 | C294: Common Stock (line 26) (Note DD) | E294: =E289 -> 455844462 | F294: =IF($E$295>0,E294/$E$295,0) -> 0.5281292714 | H294: 0.1238 | J294: =H294*F294 -> 0.0653824038
A295: 30 | C295: Total (sum lines 27-29) (Note DD) | E295: =E294+E293+E292 -> 863130462 | J295: =SUM(J292:J294) -> 0.09153024702 | K295: =R
C297: REVENUE CREDITS
E298: Load
C299: ACCOUNT 447 (SALES FOR RESALE) (310-311) (Note Q)
A300: 31 | C300: a. Bundled Non-RQ Sales for Resale (311.x.h) | E300: 0
A301: 32 | C301: b. Bundled Sales for Resale included in Divisor on page 1 | E301: 0
A302: 33 | C302: Total of (a)-(b) | E302: =+E300-E301 -> 0
A304: 34 | C304: ACCOUNT 454 (RENT FROM ELECTRIC PROPERTY) (Note R) | E304: 1445541
C306: ACCOUNT 456.1 (OTHER ELECTRIC REVENUES) (Note U) (330.x.n)
A307: 35 | C307: a. Transmission charges for all transmission transactions | E307: 2978123
A308: 36 | C308: b. Transmission charges for all transmission transactions included in Divisor on Page 1 | E308: 0
A309: 36a | C309: c. Transmission charges from Schedules associated with Attachment GG (Note X) | E309: =+E222 -> 1798253
A310: 36b | C310: d. Transmission charges from Schedules associated with Attachment MM (Note Z) | E310: =+E226 -> 827949
... 77 more rows
